Cogmind - Beta 13 @@@ ROGUE MODE // 2024.05.07 @ 14:11:11 Player: Wyvric Result: Smashed by cave-in Performance ------------- Evolutions (7) 3500 Regions Visited (24) 4800 Robots Destroyed (210) 1050 Value Destroyed (8274) 8274 Prototype IDs (36) 720 Alien Tech Used (0) 0 Bonus (4117) 4117 TOTAL SCORE: 22461 Bonus ------- High Alert Combat Kills 1042 Follower Combat Kills 2625 Network Hubs Disabled 200 Met Data Miner 300 Built Enhanced Grunts 300 A7 Reached Mainframe 300 Friendly Fire -650 Cogmind --------- Core Integrity 0/1300 Matter 78/300 Energy 359/600 System Corruption 21% Temperature Cool (0) Movement Core (50) Location -3/Testing Parts ------- > --- POWER (1) -------- (None) > --- PROPULSION (8) --- (None) > --- UTILITY (8) ------ Advanced Energy Well > --- WEAPON (4) ------- (None) > --- INVENTORY (5) ---- Advanced Heat Sink Huge Storage Unit Experimental Sensor Array Long-range Terrain Scanner Improved Plasma Cutter Peak State ------------ > --- POWER ------------ Particle-Neutrino Reactor > --- PROPULSION ------- Flying Impulse-FC Exoskeleton Field Propulsion Array > --- UTILITY ---------- Armored Scrap Engine Huge Storage Unit Improved Hacking Suite Improved Hacking Suite Improved System Shield Improved System Shield Improved System Shield > --- WEAPON ----------- Neutron Cannon Linear Accelerator Hvy. Ballistic Linear Construct/C > --- INVENTORY -------- Advanced Cryofiber Web Advanced Heat Sink Advanced Heat Sink Advanced Coolant Injector Advanced Weight Redist. System Advanced Weight Redist. System Advanced Sensor Array Experimental Sensor Array Improved Terrain Scan Processor Seismic Detector Heavy Armor Plating Centrium Medium Armor Plating Experimental Thermal Shield Remote Force Field Advanced Component Analysis Suite Advanced Corruption Screen Railgun Linear Accelerator Improved Plasma Cutter Power Maul [Rating: 127] Favorites ----------- Power Constructs Engine Improved Ion Engine Power Core Light Nuclear Core Reactor Constructs Propulsion Constructs Treads Heavy Treads Leg Aluminum Leg Wheel Wheel Hover Unit Gravmag System Flight Unit Constructs Utility Armored Scrap Engine Device Armored Scrap Engine Storage Humpback Processor Improved Signal Interpreter Hackware Improved Hacking Suite Protection Hardened Medium Armor Plating Weapon Constructs Energy Gun Spread Laser Energy Cannon Neutron Cannon Ballistic Gun Constructs Ballistic Cannon Constructs Launcher Heavy Rocket Launcher Special Weapon Improved Plasma Cutter Impact Weapon Power Maul Slashing Weapon Axe Build | -11 -10 -10 -9 -9 -9 -8 -8 -8 -8 -6 -6 -6 -6 -6 -6 -5 -5 -4 -4 -4 -4 -4 -3 -3 ------- Run | Yrd Mat Min Mat Min Exi Min Mat Sto Rec Fac Was Fac Low Low Dat Pro Fac Fac Ext Cet Arc Hub Res Tes Slots Evolved 14 | . . . 2 . . . 2 . . 4 . . . . . . 2 2 . . . . 2 . Power . | . . . . . . . . . . . . . . . . . . . . . . . . . Propulsion 6 | . . . . . . . 1 . . 3 . . . . . . . 2 . . . . . . Utility 6 | . . . 2 . . . 1 . . 1 . . . . . . . . . . . . 2 . Weapon 2 | . . . . . . . . . . . . . . . . . 2 . . . . . . . Parts Attached 358 | 7 1 11 31 5 4 1 13 42 2 6 22 7 6 6 1 20 85 12 31 2 12 17 9 5 Power 15 | 1 . 3 2 . 1 . . 2 . . 1 . . . . . 3 . 1 . . 1 . . Engine 10 | 1 . 3 2 . 1 . . 1 . . . . . . . . 2 . . . . . . . Core 2 | . . . . . . . . 1 . . . . . . . . . . 1 . . . . . Reactor 3 | . . . . . . . . . . . 1 . . . . . 1 . . . . 1 . . Propulsion 105 | 2 . 4 14 . . 1 5 15 . 3 13 1 2 . . . 17 4 7 1 7 8 1 . Treads 26 | . . 2 6 . . . . 1 . . 5 1 1 . . . 3 3 2 1 . 1 . . Leg 11 | 2 . . . . . . 1 3 . . . . 1 . . . 3 . . . . 1 . . Wheel 41 | . . 2 8 . . 1 4 7 . 3 5 . . . . . 10 1 . . . . . . Hover 18 | . . . . . . . . 3 . . 3 . . . . . 1 . . . 5 6 . . Flight 9 | . . . . . . . . 1 . . . . . . . . . . 5 . 2 . 1 . Utility 164 | 1 1 3 11 . 3 . 6 11 1 3 8 6 4 6 1 20 43 6 11 . 4 6 7 2 Device 90 | . . 2 5 . . . 1 3 1 2 8 3 3 6 1 18 25 2 4 . 3 2 1 . Storage 14 | 1 1 . . . 1 . 1 3 . . . . . . . . 2 1 2 . . . . 2 Processor 12 | . . 1 2 . . . . . . 1 . 1 . . . . 1 3 3 . . . . . Hackware 11 | . . . . . . . . . . . . 1 . . . . 1 . . . . 3 6 . Protection 37 | . . . 4 . 2 . 4 5 . . . 1 1 . . 2 14 . 2 . 1 1 . . Artifact . | . . . . . . . . . . . . . . . . . . . . . . . . . Weapon 74 | 3 . 1 4 5 . . 2 14 1 . . . . . . . 22 2 12 1 1 2 1 3 Energy Gun 18 | 1 . 1 . 2 . . 1 11 . . . . . . . . . . . . 1 1 . . Energy Cannon 17 | . . . . . . . . 2 . . . . . . . . 10 2 . . . 1 . 2 Ballistic Gun 12 | 2 . . 4 2 . . . . . . . . . . . . 2 . 2 . . . . . Ballistic Cannon 9 | . . . . . . . 1 . . . . . . . . . 5 . 2 . . . 1 . Launcher 7 | . . . . 1 . . . 1 . . . . . . . . 5 . . . . . . . Special Weapon 2 | . . . . . . . . . . . . . . . . . . . . 1 . . . 1 Impact Weapon 7 | . . . . . . . . . . . . . . . . . . . 7 . . . . . Slashing Weapon 2 | . . . . . . . . . 1 . . . . . . . . . 1 . . . . . Piercing Weapon . | . . . . . . . . . . . . . . . . . . . . . . . . . Special Melee Weapon . | . . . . . . . . . . . . . . . . . . . . . . . . . Unidentified Prototypes 14 | . . 1 . . . . . 4 . . . . . . . . 2 . . 1 1 1 . 4 Corrupted Parts 1 | . . . . . . . . . . . . . . . . . . . . 1 . . . . System Corruption 7 | . . . . . . . . . . . . . . . . . . . . 7 . . . . Parts Lost 87 | . 1 2 2 1 . . 2 8 . . 5 2 . . . 1 29 2 12 1 . 7 8 4 Power 10 | . 1 2 . . . . . 1 . . . . . . . 1 2 . 1 . . 1 1 . Propulsion 33 | . . . . . . . 1 4 . . 3 . . . . . 9 1 5 1 . 5 3 1 Utility 27 | . . . 1 . . . . 2 . . 2 2 . . . . 9 1 5 . . . 4 1 Weapon 17 | . . . 1 1 . . 1 1 . . . . . . . . 9 . 1 . . 1 . 2 Highest Loss Streak 11 | . 1 1 2 1 . . 1 6 . . 5 1 . . . 1 10 2 11 1 . 6 6 3 To Critical Strikes 3 | . . . . . . . . . . . 1 . . . . . 2 . . . . . . . Average Slot Usage (%) 68 | . 85 91 95 88 84 88 81 80 57 65 57 51 52 53 53 52 70 43 52 82 76 70 53 19 Engine 3 | . 14 13 11 11 11 11 9 6 . . . . . . . . 3 . . . . . . . Core 1 | . . . . . . . . 2 7 6 . . . . . 1 . 2 . . . . . . Reactor 2 | . . . . . . . . . . . 5 6 6 6 6 4 1 . 2 5 5 4 3 . Treads 3 | . . 9 5 . . . . . . . 4 1 7 13 13 8 2 3 3 8 3 2 . . Leg 2 | . 28 17 . . . . . 2 6 . . . 2 . . 3 4 . . . . 1 . . Wheel 6 | . . 1 16 22 22 22 26 22 3 25 4 . . . . . 9 1 3 . . . . . Hover 3 | . . . . . . . . . . . 9 3 . . . . 2 5 1 5 17 16 . . Flight 1 | . . . . . . . . . . . . 6 2 . . . . . 6 17 6 . 8 1 Device 8 | . . 2 2 . . . . 6 9 12 17 15 12 13 13 12 13 9 6 10 12 12 6 . Storage 7 | . 14 14 11 11 13 11 9 9 9 6 6 6 6 6 6 6 5 3 4 5 5 5 3 8 Processor 4 | . . 3 4 11 11 11 9 . . 5 . 1 6 6 6 6 . 7 9 10 5 . . . Protection 4 | . . . 23 11 5 11 9 13 9 . . . . . . . 2 . . . . 2 . . Energy Gun 2 | . . 1 . 9 11 11 9 15 2 . . . . . . . . . 1 . 2 3 . . Energy Cannon 3 | . . . . . . . . 1 4 6 6 6 6 6 6 5 6 8 . . . 4 5 8 Ballistic Gun 6 | . 28 26 21 12 11 11 5 . 2 . . . . . . . 2 . 3 9 9 5 . . Ballistic Cannon 1 | . . . . . . . 2 . . . . . . . . . 7 . . 7 5 4 3 . Naked Turns . | . . . . . . . . . . . . . . . . . . . . . . . . . Heaviest Build 293 | 12 87 89 117 108 293 221 230 240 220 217 229 232 226 223 223 230 255 111 132 132 136 139 132 54 Greatest Support 199 | 20 20 40 40 20 20 20 36 36 53 101 101 91 129 129 129 199 129 28 53 80 102 102 81 3 Greatest Overweight (x) 35 | . 4 4 5 5 14 11 7 11 21 2 8 2 3 1 1 1 13 4 35 3 2 2 1 17 Average Overweight (x) 3 | . 2 3 4 5 7 11 6 7 9 2 4 2 1 1 1 1 2 . 2 1 1 1 . 6 Largest Inventory Capacity 35 | 8 25 25 25 25 35 35 35 35 35 35 35 35 35 35 35 35 35 25 25 25 25 25 25 5 Average Capacity 29 | 6 20 25 25 25 30 35 35 35 35 35 35 35 35 35 35 35 27 14 23 25 25 25 23 5 Most Carried 35 | 6 8 25 25 25 35 35 35 35 35 35 35 35 35 35 35 35 35 19 25 23 25 25 23 5 Average Carried 26 | 3 7 12 24 24 29 34 34 33 33 33 34 34 34 34 35 34 25 13 9 18 22 21 19 4 Final Capacity 35 | 8 25 25 25 25 35 35 35 35 35 35 35 35 35 35 35 35 25 5 25 25 25 25 5 5 Final Carried 35 | 6 8 25 25 24 35 35 35 35 35 35 35 34 35 35 35 35 17 5 13 21 25 19 5 5 Scrap Engine Consumption 217 | . . . . . . . . . 44 1 20 8 4 1 . 10 31 21 28 4 16 17 12 . Constructs Created 17 | . . . . . . . . . 3 . 1 . . . . 1 3 2 5 1 . . 1 . Constructs Modified 68 | . . . . . . . . . 13 . 6 . 2 . . 7 10 2 10 . 8 7 3 . Class Distribution -------------------- 34% | Hauler-Construct 25% | Mutant 14% | Hauler-Mutant 7% | Scavenger-Gunner 4% | Commander-Gunner 4% | Scavenger-Tank Dominant Class ---------------- Mutant | -10/Materials Mutant | -10/Mines Mutant | -9/Materials Mutant | -9/Mines Hauler-Mutant | -9/Exiles Hauler-Mutant | -8/Mines Hauler-Mutant | -8/Materials Hauler-Mutant | -8/Storage Hauler-Construct | -8/Recycling Hauler-Construct | -6/Factory Hauler-Construct | -6/Waste Hauler-Construct | -6/Factory Hauler-Construct | -6/Lower Caves Hauler-Construct | -6/Lower Caves Hauler-Construct | -6/Data Miner Hauler-Construct | -5/Proximity Caves Scavenger-Tank | -5/Factory Skirmisher | -4/Factory Mutant | -4/Extension Scavenger-Gunner | -4/Cetus Scavenger-Gunner | -4/Archives Scavenger-Tank | -4/Hub_04(d) Wizard-Gunner | -3/Research Pyromaniac-Gunner | -3/Testing Resources | -11 -10 -10 -9 -9 -9 -8 -8 -8 -8 -6 -6 -6 -6 -6 -6 -5 -5 -4 -4 -4 -4 -4 -3 -3 ----------- Run | Yrd Mat Min Mat Min Exi Min Mat Sto Rec Fac Was Fac Low Low Dat Pro Fac Fac Ext Cet Arc Hub Res Tes Matter Collected 6053 | 234 68 202 422 74 . 178 398 368 118 . 210 97 111 321 . 200 1270 6 558 278 437 379 124 . Remotely . | . . . . . . . . . . . . . . . . . . . . . . . . . Salvage Created 10326 | . 103 622 805 114 . 169 418 287 1140 . 1513 83 174 120 . 1045 2308 . 240 30 361 449 345 . Parts 406 | . 4 47 70 12 . 7 21 9 35 . 17 1 3 . . 18 95 . 8 1 26 14 18 . Haulers Intercepted 2 | . . . . . . . . 1 . . . . . . . 1 . . . . . . . . Recyclers Shooed 19 | . . 2 . 1 . 1 1 1 7 . . . . . . . 5 . . . . . 1 . Parts Field Recycled . | . . . . . . . . . . . . . . . . . . . . . . . . . Retrieved Matter . | . . . . . . . . . . . . . . . . . . . . . . . . . Parts Self-Destructed 60 | . . . . . . . . . . . . . 14 2 . 44 . . . . . . . . Prevented 4 | . . . . . . . . . . . . . 4 . . . . . . . . . . . Kills | -11 -10 -10 -9 -9 -9 -8 -8 -8 -8 -6 -6 -6 -6 -6 -6 -5 -5 -4 -4 -4 -4 -4 -3 -3 ------- Run | Yrd Mat Min Mat Min Exi Min Mat Sto Rec Fac Was Fac Low Low Dat Pro Fac Fac Ext Cet Arc Hub Res Tes Combat Hostiles Destroyed 163 | . 2 15 22 9 . 2 8 8 3 . 6 2 3 2 . 15 48 . 2 1 1 8 6 . Melee 1 | . . . . . . . . 1 . . . . . . . . . . . . . . . . Guns 71 | . 2 15 22 6 . 2 7 6 2 . . . . . . . 5 . 1 . . 3 . . Cannons 53 | . . . . . . . 1 . 1 . 3 1 2 1 . 11 20 . . 1 1 5 6 . AOE 20 | . . . . 3 . . . . . . . . . . . . 17 . . . . . . . Classes Destroyed 17 | . 1 3 4 . . 1 . 1 . . 1 1 . 1 . 1 3 . . . . . . . Worker 10 | . . . 2 . . 1 3 . . . . . . . . . 4 . . . . . . . Builder 5 | . . 1 1 . . . . . 2 . . . . . . . 1 . . . . . . . Tunneler 2 | . . 1 . . . . . . . . . . . . . . 1 . . . . . . . Hauler 2 | . . . . . . . . 1 . . . . . . . 1 . . . . . . . . Recycler 16 | . . . . . . 1 . . 13 . . . . . . . 1 . 1 . . . . . Operator 9 | . . . . . . . . . . . . . . . . . 1 . . . 8 . . . Watcher 3 | . . . 2 . . . 1 . . . . . . . . . . . . . . . . . Swarmer 38 | . . 1 9 9 . . . . . . . . 1 . . 1 16 . 1 . . . . . Grunt 72 | . 2 14 7 . . 2 5 7 . . . . 2 . . 10 16 . . . . 6 1 . Brawler 2 | . . . 1 . . . . . . . . . . . . . 1 . . . . . . . Duelist 4 | . . . . . . . . . . . . . . 1 . 2 1 . . . . . . . Sentry 21 | . . . 5 . . . 3 1 3 . . . . 1 . 1 5 . . . 1 . 1 . Hunter 2 | . . . . . . . . . . . . . . . . . 2 . . . . . . . Programmer 11 | . . . . . . . . . . . . . . . . . 5 . . . . 2 4 . Heavy 3 | . . . . . . . . . . . . 2 . . . . 1 . . . . . . . Behemoth 3 | . . . . . . . . . . . . . . . . 1 1 . 1 . . . . . Compactor 6 | . . . . . . . . . . . 6 . . . . . . . . . . . . . Cetus Guard 1 | . . . . . . . . . . . . . . . . . . . . 1 . . . . Best Kill Streak 7 | . 2 5 4 3 . 1 7 2 4 . 1 1 3 2 . 5 6 . 1 1 2 4 3 . Combat Bots Only 5 | . 2 4 4 3 . 1 4 2 1 . 1 1 3 2 . 5 5 . 1 1 1 4 3 . Max Kills in Single Turn 3 | . 1 1 1 2 . 1 1 1 1 . 1 1 1 1 . 1 3 . 1 1 1 1 1 . Gunslinging . | . . . . . . . . . . . . . . . . . . . . . . . . . Exploded 3 | . . . . 2 . . . . . . . . . . . . 3 . . . . . . . Melee 1 | . . . . . . . . 1 . . . . . . . . . . . . . . . . Uniques/NPCs Destroyed . | . . . . . . . . . . . . . . . . . . . . . . . . . Combat | -11 -10 -10 -9 -9 -9 -8 -8 -8 -8 -6 -6 -6 -6 -6 -6 -5 -5 -4 -4 -4 -4 -4 -3 -3 -------- Run | Yrd Mat Min Mat Min Exi Min Mat Sto Rec Fac Was Fac Low Low Dat Pro Fac Fac Ext Cet Arc Hub Res Tes Hostile Shots Fired 1874 | . 39 67 89 42 . 12 66 124 8 . 9 12 9 16 . 76 595 134 142 22 . 168 244 . Missed 546 | . 7 20 22 12 . 7 19 19 2 . . 4 2 4 . 18 145 62 41 7 . 58 97 . Damage Taken 28304 | . 394 516 936 262 . 83 720 1784 92 . 375 348 135 193 . 1480 9555 1496 2911 335 56 2066 3289 1278 Core 3931 | . 115 68 158 22 . 19 30 191 33 . 61 34 20 32 . 95 706 228 599 96 . 96 970 358 Absorbed by Shields 475 | . . . . . . . . . . . . . . . . . 343 . 69 63 . . . . Reduced by Siege Mode 68 | . . . . . . . . . . . . . . . . 30 38 . . . . . . . Ignored by Resistances 83 | . . . . . . . . . . . . . . . . . 83 . . . . . . . Regen/Repaired (Parts) 3641 | . . . . . . . . . 14 . 85 85 34 46 . 867 790 327 463 . 168 516 246 . Core Remaining (%) 48 | 100 . 26 . . . 50 . . 53 . . . . . . 71 29 . . . . 11 . . Volleys Fired 655 | . 11 58 57 15 . 11 34 31 54 1 53 8 8 7 . 53 114 1 8 13 66 20 28 4 Largest 4 | . 2 2 2 2 . 2 2 2 2 1 1 1 1 1 . 1 4 2 2 3 3 4 3 2 Hottest 400 | . 40 60 46 130 . 88 130 130 130 80 80 80 80 80 . 80 343 180 80 153 153 268 240 400 Shots Fired 1148 | . 22 116 102 26 . 21 68 58 63 1 53 8 8 7 . 53 282 2 12 39 70 77 54 6 Gun 643 | . 22 116 102 24 . 21 62 57 44 . . . . . . . 49 . 12 14 67 53 . . Cannon 484 | . . . . . . . 6 1 19 1 53 8 8 7 . 53 214 2 . 25 3 24 54 6 Launcher 21 | . . . . 2 . . . . . . . . . . . . 19 . . . . . . . Special . | . . . . . . . . . . . . . . . . . . . . . . . . . Kinetic 604 | . 22 102 102 13 . 11 33 . . . . . . . . . 140 . 8 38 63 39 33 . Thermal 485 | . . . . 11 . 10 35 56 63 1 53 8 8 7 . 53 123 2 . . 5 23 21 6 Explosive 6 | . . . . . . . . . . . . . . . . . 6 . . . . . . . Electromagnetic 53 | . . 14 . 2 . . . 2 . . . . . . . . 13 . 4 1 2 15 . . Robot Hit Streak 22 | . 7 14 21 4 . 7 13 13 10 . 16 16 8 15 . 22 14 . 5 10 6 8 6 . Robot Miss Streak 7 | . 2 3 2 6 . 2 6 7 5 . 3 2 2 1 . 3 6 2 1 2 6 4 4 . Penetration Max 3 | . . . . . . . . . . . . . . . . . 3 . . . . 1 . . Secondary Targets 7 | . . 2 2 2 . . 1 . . . . . . . . . . . . . . . . . Max Gunslinging Chain 1 | . . 1 1 1 . . 1 . . . . . . . . . . . . . . . . . Shots Hit Robots 804 | . 17 73 75 17 . 15 53 52 54 . 45 8 8 7 . 52 177 . 15 28 41 45 22 . Core Hits 612 | . 6 39 34 16 . 13 49 76 49 . 18 5 8 7 . 52 173 2 3 11 20 23 8 . Critical Kills 16 | . . 1 3 . . . . . . . . . . . . . 4 . 1 . 7 . . . Critical Parts Destroyed 6 | . . . 1 . . . . . . . . . . . . . . . 2 . 3 . . . Critical Strikes 42 | . . 1 4 . . . . . 1 . 8 . . . . 1 6 . 4 2 11 2 2 . Burn 10 | . . . . . . . . . 1 . 8 . . . . 1 . . . . . . . . Meltdown 1 | . . . . . . . . . . . . . . . . . 1 . . . . . . . Destroy 22 | . . 1 4 . . . . . . . . . . . . . 3 . 2 1 11 . . . Blast 7 | . . . . . . . . . . . . . . . . . 2 . . 1 . 2 2 . Smash 2 | . . . . . . . . . . . . . . . . . . . 2 . . . . . Melee Attacks 5 | . . . . . . . . . . . . . . . . . . . 5 . . . . . Impact 5 | . . . . . . . . . . . . . . . . . . . 5 . . . . . Slashing . | . . . . . . . . . . . . . . . . . . . . . . . . . Piercing . | . . . . . . . . . . . . . . . . . . . . . . . . . Sneak Attacks . | . . . . . . . . . . . . . . . . . . . . . . . . . Combat Hostiles . | . . . . . . . . . . . . . . . . . . . . . . . . . Follow-up Attacks 2 | . . . . . . . . . . . . . . . . . . . 2 . . . . . Damage Inflicted 22755 | . 140 688 1104 304 . 240 747 901 902 . 1918 282 233 247 . 1807 7696 16 393 894 1088 1548 1607 . Guns 7442 | . 140 681 1043 178 . 240 692 820 550 . . . . . . . 930 . 177 171 971 849 . . Cannons 12183 | . . . . . . . 55 . 352 . 1918 282 233 247 . 1807 4391 . . 723 117 674 1384 . Explosions 2731 | . . . . 126 . . . 79 . . . . . . . . 2303 . . . . . 223 . Melee 216 | . . . . . . . . . . . . . . . . . . . 216 . . . . . Ramming 183 | . . 7 61 . . . . 2 . . . . . . . . 72 16 . . . 25 . . Kinetic 9212 | . 140 537 1043 92 . 150 374 . . . . . . . . . 2982 . 127 894 966 848 1059 . Thermal 10551 | . . . . 115 . 90 373 797 902 . 1918 282 233 247 . 1807 2674 . . . 57 508 548 . Explosive 985 | . . . . . . . . 79 . . . . . . . . 906 . . . . . . . Electromagnetic 1608 | . . 144 . 97 . . . 23 . . . . . . . . 1062 . 50 . 65 167 . . Impact 216 | . . . . . . . . . . . . . . . . . . . 216 . . . . . Slashing . | . . . . . . . . . . . . . . . . . . . . . . . . . Piercing . | . . . . . . . . . . . . . . . . . . . . . . . . . Highest Corruption 21 | . . . . . . . . . . . . 1 1 1 . . 12 . 5 12 12 4 13 21 Average Corruption 4 | . . . . . . . . . . . . 1 1 1 . . 2 . 4 9 8 3 7 14 Corruption Purged 14 | . . . . . . . . . . . . . . 1 . . 1 . . . 12 . . . Corruption Blocked . | . . . . . . . . . . . . . . . . . . . . . . . . . Effects 129 | . . . . . . . . . . . . 5 4 5 . . 23 . 22 16 19 8 6 21 Message Errors 33 | . . . . . . . . . . . . 2 1 3 . . 3 . 3 6 5 3 1 6 Matter Fused 27 | . . . . . . . . . . . . . 1 2 . . 6 . 5 1 4 4 2 2 Heat Flow Errors 17 | . . . . . . . . . . . . 1 . . . . 5 . 3 . . . . 8 Energy Discharges 12 | . . . . . . . . . . . . 1 . . . . 4 . 4 1 . . 1 1 Parts Fused 1 | . . . . . . . . . . . . . . . . . . . . 1 . . . . Data Loss (minor) 20 | . . . . . . . . . . . . 1 2 . . . 2 . 4 2 5 1 1 2 Data Loss (major) 7 | . . . . . . . . . . . . . . . . . 1 . 3 . 2 . . 1 Misfires 4 | . . . . . . . . . . . . . . . . . 1 . . 2 1 . . . Alerts 4 | . . . . . . . . . . . . . . . . . 1 . . 2 1 . . . Misdirections 1 | . . . . . . . . . . . . . . . . . . . . . . . 1 . Weapon Failures 3 | . . . . . . . . . . . . . . . . . . . . 1 1 . . 1 Overload Shots . | . . . . . . . . . . . . . . . . . . . . . . . . . Overflow Damage 525 | . . . . . . . . 71 27 . . . . . . 16 114 . 56 . . 10 179 52 Projectiles 322 | . . . . . . . . . 27 . . . . . . 16 109 . . . . 10 160 . Explosions 147 | . . . . . . . . 71 . . . . . . . . 5 . . . . . 19 52 Melee 56 | . . . . . . . . . . . . . . . . . . . 56 . . . . . Knockbacks 39 | . . . . . . . . . . . . . . . . . 24 . . 3 1 6 5 . Impact . | . . . . . . . . . . . . . . . . . . . . . . . . . Kinetic 37 | . . . . . . . . . . . . . . . . . 23 . . 2 1 6 5 . Secondary 2 | . . . . . . . . . . . . . . . . . 1 . . 1 . . . . Self-Inflicted Damage 1156 | . . . 29 23 . . . 75 . . . . . . . . 533 2 . . . . 19 475 Shots 26 | . . . . 3 . . . 1 . . . . . . . . 16 . . . . . 1 5 Rammed 13 | . . 2 4 . . . . 1 . . . . . . . . . 6 . . . . . . Targets Rammed 20 | . . 2 4 . . . . 2 . . . . . . . . 3 6 . . . 3 . . Kicked 6 | . . . . . . . . . . . . . . . . . 3 . . . . 3 . . Crushed 1 | . . . . . . . . 1 . . . . . . . . . . . . . . . . Highest Temperature 732 | . 18 22 249 324 . 146 321 732 293 20 219 90 171 115 . 300 381 326 337 376 51 328 437 273 Average Temperature 116 | . 10 6 65 119 . 53 129 242 99 15 69 28 76 56 . 78 122 128 112 175 24 91 133 122 Received Heat Transfer 6343 | . 222 270 321 . . 45 423 1152 45 . . 36 63 21 . 342 1981 486 647 . . 207 82 . Effects 36 | . . . 1 . . . . 21 . . . . . . . 1 8 . . . . 1 4 . Shutdowns 3 | . . . . . . . . 1 . . . . . . . . 1 . . . . 1 . . Energy Bleed 4 | . . . . . . . . 2 . . . . . . . . 2 . . . . . . . Interference 15 | . . . 1 . . . . 5 . . . . . . . 1 5 . . . . . 3 . Matter Decay 2 | . . . . . . . . 2 . . . . . . . . . . . . . . . . Short Circuit 5 | . . . . . . . . 4 . . . . . . . . . . . . . . 1 . Damage (minor) 6 | . . . . . . . . 6 . . . . . . . . . . . . . . . . Damage (major) 1 | . . . . . . . . 1 . . . . . . . . . . . . . . . . Siege Activations 9 | . . . . . . . . . . . 1 . . . . 5 3 . . . . . . . Total Turns 111 | . . . . . . . . . . . 7 . . . . 50 54 . . . . . . . Longest Duration 29 | . . . . . . . . . . . 7 . . . . 25 29 . . . . . . . Robots Corrupted 3 | . . . . . . . . . . . . . . . . . 3 . . . . . . . Combat Hostiles 3 | . . . . . . . . . . . . . . . . . 3 . . . . . . . Parts Fried 12 | . . . . 1 . . . 2 . . . . . . . . 9 . . . . . . . Impact Corruptions 2 | . . . . . . . . . . . . . . . . . . . 2 . . . . . Robots Melted 13 | . . . . . . . . . . . 3 1 1 1 . 4 3 . . . . . . . Combat Hostiles 13 | . . . . . . . . . . . 3 1 1 1 . 4 3 . . . . . . . Parts Melted 58 | . . . . . . . . . 2 . 6 8 1 5 . 21 15 . . . . . . . Heat Transferred 21037 | . . . . 205 . 120 460 1000 2018 . 4089 950 800 850 . 5664 4026 . . . 74 481 300 . Parts Sabotaged 3 | . . . . . . . . . . . . . . . . . . . . . . . 3 . Parts Stolen . | . . . . . . . . . . . . . . . . . . . . . . . . . Parts Stripped . | . . . . . . . . . . . . . . . . . . . . . . . . . Power Chain Reactions 6 | . . . . 2 . . . . . . . . . . . . 3 . . . . . 1 . Alert | -11 -10 -10 -9 -9 -9 -8 -8 -8 -8 -6 -6 -6 -6 -6 -6 -5 -5 -4 -4 -4 -4 -4 -3 -3 ------- Run | Yrd Mat Min Mat Min Exi Min Mat Sto Rec Fac Was Fac Low Low Dat Pro Fac Fac Ext Cet Arc Hub Res Tes Peak Influence 1297 | . 126 168 329 323 . 90 284 403 140 307 107 919 . . . . 1297 690 363 247 275 693 346 173 Initial 621 | . . 45 65 103 . . . 48 102 306 107 . . . . . 168 621 305 150 18 . 261 147 Average 186 | . 69 53 200 148 . 18 130 212 39 306 17 405 . . . . 710 654 173 211 67 398 244 138 Maximum Alert Level 4 | . . . 1 1 . . 1 2 . 1 . 3 . . . . 4 2 1 1 1 2 1 . Low Security (%) 65 | 100 100 100 31 74 . 100 68 42 100 . 100 32 . . . . . . 70 25 85 26 18 100 Level 1 20 | . . . 68 25 . . 31 56 . 100 . 1 . . . . 15 . 29 74 14 3 81 . Level 2 8 | . . . . . . . . 1 . . . 50 . . . . 24 100 . . . 70 . . Level 3 4 | . . . . . . . . . . . . 16 . . . . 51 . . . . . . . Level 4 . | . . . . . . . . . . . . . . . . . 8 . . . . . . . Level 5 . | . . . . . . . . . . . . . . . . . . . . . . . . . High Security . | . . . . . . . . . . . . . . . . . . . . . . . . . Max Security . | . . . . . . . . . . . . . . . . . . . . . . . . . Squads Dispatched 47 | . 2 . 2 . . . . 1 . 1 . 8 . . . 1 19 2 1 . . 6 3 1 Investigation 10 | . 2 . 2 . . . . . . . . 4 . . . . 1 . . . . 1 . . Extermination 7 | . . . . . . . . . . . . . . . . . 3 1 . . . 1 1 1 Reinforcement 14 | . . . . . . . . 1 . 1 . 4 . . . . 3 1 1 . . 1 2 . Assault 8 | . . . . . . . . . . . . . . . . 1 4 . . . . 3 . . Garrison 8 | . . . . . . . . . . . . . . . . . 8 . . . . . . . Intercept . | . . . . . . . . . . . . . . . . . . . . . . . . . Searches Triggered . | . . . . . . . . . . . . . . . . . . . . . . . . . Data Miner Redirects 4 | . . . . . . . . . . . . . . . . . . . . . . 3 1 . Construction Impeded 5 | . . . . . . . . 1 . . . 1 . . . . 1 1 . . . . 1 . Haulers Reinforced . | . . . . . . . . . . . . . . . . . . . . . . . . . Active Scanning Responses . | . . . . . . . . . . . . . . . . . . . . . . . . . Cargo Convoy Interrupts 1 | . . . . . . . . . . . . . . . . . . . . . . . 1 . Stealth | -11 -10 -10 -9 -9 -9 -8 -8 -8 -8 -6 -6 -6 -6 -6 -6 -5 -5 -4 -4 -4 -4 -4 -3 -3 --------- Run | Yrd Mat Min Mat Min Exi Min Mat Sto Rec Fac Was Fac Low Low Dat Pro Fac Fac Ext Cet Arc Hub Res Tes Distress Signals 45 | . . . 2 . . . 2 1 1 . . 2 . . . 25 3 . 1 1 . 2 5 . Communications Jammed 92 | . . . . . . . . . . . . . . . . . 92 . . . . . . . Distress Signals 90 | . . . . . . . . . . . . . . . . . 90 . . . . . . . Times Spotted 407 | . 5 16 31 9 . 5 20 20 3 . 6 6 10 6 . 31 83 18 26 5 43 29 35 . Peak Tracking Total 20 | . 2 2 4 3 . 3 7 3 1 . 1 4 4 5 . 7 9 11 7 5 2 6 20 1 Tactical Retreats 28 | . 1 . 2 . . 2 1 2 . . . . . . . . 8 4 4 . . . 4 . Traps | -11 -10 -10 -9 -9 -9 -8 -8 -8 -8 -6 -6 -6 -6 -6 -6 -5 -5 -4 -4 -4 -4 -4 -3 -3 ------- Run | Yrd Mat Min Mat Min Exi Min Mat Sto Rec Fac Was Fac Low Low Dat Pro Fac Fac Ext Cet Arc Hub Res Tes Traps Triggered 16 | . 1 . 1 . . . . . . 1 . 1 . . . . 2 . 5 . . 5 . . Indirectly 1 | . . . . . . . . . . . . . . . . . 1 . . . . . . . Trap Hack Attempts . | . . . . . . . . . . . . . . . . . . . . . . . . . Triggered . | . . . . . . . . . . . . . . . . . . . . . . . . . Disarmed . | . . . . . . . . . . . . . . . . . . . . . . . . . Reprogrammed . | . . . . . . . . . . . . . . . . . . . . . . . . . Reused . | . . . . . . . . . . . . . . . . . . . . . . . . . Traps Extracted . | . . . . . . . . . . . . . . . . . . . . . . . . . Installed . | . . . . . . . . . . . . . . . . . . . . . . . . . Triggered 1 | . . . . . . . . . . . . . 1 . . . . . . . . . . . Machines | -11 -10 -10 -9 -9 -9 -8 -8 -8 -8 -6 -6 -6 -6 -6 -6 -5 -5 -4 -4 -4 -4 -4 -3 -3 ---------- Run | Yrd Mat Min Mat Min Exi Min Mat Sto Rec Fac Was Fac Low Low Dat Pro Fac Fac Ext Cet Arc Hub Res Tes Machines Disabled 40 | . . 1 1 . . . 1 5 . . . 5 . . . . 12 . 2 . 3 7 1 2 Max in Single Turn 3 | . . . 1 . . . 1 1 . . . . . . . . 3 . 1 . 1 1 1 2 Garrison Access 3 | . . . . . . . . . . . . . . . . . . . . . . 2 1 . Network Hub 1 | . . . . . . . . . . . . . . . . . . . . . . 1 . . Machines Repaired . | . . . . . . . . . . . . . . . . . . . . . . . . . Machines Dismantled 2 | . . . . . . . . . . . . . . . . . . . . 1 . . . 1 Machines Sabotaged . | . . . . . . . . . . . . . . . . . . . . . . . . . Overloaded Fab Kills . | . . . . . . . . . . . . . . . . . . . . . . . . . Hacking | -11 -10 -10 -9 -9 -9 -8 -8 -8 -8 -6 -6 -6 -6 -6 -6 -5 -5 -4 -4 -4 -4 -4 -3 -3 --------- Run | Yrd Mat Min Mat Min Exi Min Mat Sto Rec Fac Was Fac Low Low Dat Pro Fac Fac Ext Cet Arc Hub Res Tes Machines Accessed 73 | . 5 . 10 . . . 2 5 11 2 . 4 1 2 4 . 7 6 6 1 . 3 4 . Terminals 56 | . 4 . 10 . . . 2 5 6 2 . 3 1 . . . 7 5 5 1 . 3 2 . Fabricators 1 | . . . . . . . . . . . . 1 . . . . . . . . . . . . Repair Stations 1 | . . . . . . . . . . . . . . . . . . 1 . . . . . . Recycling Units 8 | . 1 . . . . . . . 5 . . . . . . . . . 1 . . . 1 . Scanalyzers . | . . . . . . . . . . . . . . . . . . . . . . . . . Garrison Access 1 | . . . . . . . . . . . . . . . . . . . . . . . 1 . Total Hacks 190 | . 16 . 23 . . . 4 10 31 3 . 13 1 2 28 . 12 12 16 1 . 7 11 . Successful 95 | . 7 . 3 . . . 1 5 17 1 . 3 1 2 28 . 4 9 5 . . 1 8 . Failed 94 | . 8 . 20 . . . 3 5 14 2 . 10 . . . . 8 3 11 1 . 6 3 . Catastrophic 28 | . . . 9 . . . . 1 2 1 . 5 . . . . 4 1 2 1 . 1 1 . Database Lockouts 1 | . 1 . . . . . . . . . . . . . . . . . . . . . . . Manual 86 | . 11 . 19 . . . . 4 12 2 . 6 . . . . 5 5 12 1 . 3 6 . Terminals 132 | . 14 . 23 . . . 4 10 19 3 . 9 1 . . . 12 10 10 1 . 7 9 . Fabricators 4 | . . . . . . . . . . . . 4 . . . . . . . . . . . . Repair Stations 2 | . . . . . . . . . . . . . . . . . . 2 . . . . . . Recycling Units 21 | . 2 . . . . . . . 12 . . . . . . . . . 6 . . . 1 . Scanalyzers . | . . . . . . . . . . . . . . . . . . . . . . . . . Garrison Access 1 | . . . . . . . . . . . . . . . . . . . . . . . 1 . Terminal Hacks 66 | . 5 . 2 . . . 1 4 8 . . 1 1 2 28 . 3 4 2 . . 1 4 . Record 12 | . . . . . . . . . . . . . 1 . 11 . . . . . . . . . Part Schematic 16 | . 1 . 1 . . . . . 4 . . . . . 10 . . . . . . . . . Robot Schematic 4 | . . . . . . . . . . . . . . . 4 . . . . . . . . . Robot Analysis 3 | . 1 . . . . . . . 2 . . . . . . . . . . . . . . . Prototype ID Bank 8 | . 2 . . . . . . 1 2 . . . . . 3 . . . . . . . . . Open Door 4 | . . . . . . . . 1 . . . . . 2 . . . 1 . . . . . . Open DSF 1 | . . . . . . . . . . . . . . . . . 1 . . . . . . . Level Access Points 1 | . . . . . . . . . . . . 1 . . . . . . . . . . . . Branch Access Points 7 | . 1 . 1 . . . 1 1 . . . . . . . . 1 1 . . . . 1 . Terminal Index 1 | . . . . . . . . . . . . . . . . . . . . . . . 1 . Alert Level 1 | . . . . . . . . . . . . . . . . . . . . . . . 1 . Unreport Threat 2 | . . . . . . . . . . . . . . . . . . . 1 . . . 1 . Zone Layout 6 | . . . . . . . . 1 . . . . . . . . 1 2 1 . . 1 . . Fabricator Hacks 1 | . . . . . . . . . . . . 1 . . . . . . . . . . . . Load Schematic 1 | . . . . . . . . . . . . 1 . . . . . . . . . . . . Repair Station Hacks 2 | . . . . . . . . . . . . . . . . . . 2 . . . . . . Scan Component 1 | . . . . . . . . . . . . . . . . . . 1 . . . . . . Repair 1 | . . . . . . . . . . . . . . . . . . 1 . . . . . . Recycling Unit Hacks 6 | . . . . . . . . . 4 . . . . . . . . . 1 . . . 1 . Retrieve Components 6 | . . . . . . . . . 4 . . . . . . . . . 1 . . . 1 . Scanalyzer . | . . . . . . . . . . . . . . . . . . . . . . . . . Garrison Access Hacks 1 | . . . . . . . . . . . . . . . . . . . . . . . 1 . Seal Access 1 | . . . . . . . . . . . . . . . . . . . . . . . 1 . Unauthorized Hacks 19 | . 2 . 1 . . . . 1 5 1 . 1 . . . . 1 3 2 . . . 2 . Terminals 12 | . 1 . 1 . . . . 1 . 1 . 1 . . . . 1 3 1 . . . 2 . Track 2 | . . . . . . . . . . . . . . . . . . 1 . . . . 1 . Botnet 9 | . 1 . 1 . . . . 1 . 1 . 1 . . . . 1 1 1 . . . 1 . Disrupt 1 | . . . . . . . . . . . . . . . . . . 1 . . . . . . Fabricators . | . . . . . . . . . . . . . . . . . . . . . . . . . Repair Stations . | . . . . . . . . . . . . . . . . . . . . . . . . . Recycling Units 7 | . 1 . . . . . . . 5 . . . . . . . . . 1 . . . . . Reject 1 | . . . . . . . . . . . . . . . . . . . 1 . . . . . Tunnel 6 | . 1 . . . . . . . 5 . . . . . . . . . . . . . . . Scanalyzers . | . . . . . . . . . . . . . . . . . . . . . . . . . Garrison Access . | . . . . . . . . . . . . . . . . . . . . . . . . . Data Cores Recovered 1 | . . . . . . . . . . . . 1 . . . . . . . . . . . . Used . | . . . . . . . . . . . . . . . . . . . . . . . . . Hacking Detections 57 | . 4 . 10 . . . 2 6 7 2 . 4 . . . . 6 4 5 1 . 3 3 . Full Trace Events 7 | . . . 2 . . . . . 1 . . 2 . . . . 1 . . . . 1 . . Feedback Events 2 | . . . . . . . . . . . . 2 . . . . . . . . . . . . Corruption 1 | . . . . . . . . . . . . 1 . . . . . . . . . . . . Hackware Fried 1 | . . . . . . . . . . . . 1 . . . . . . . . . . . . Feedback Blocked . | . . . . . . . . . . . . . . . . . . . . . . . . . Robot Schematics Acquired 4 | . . . . . . . . . . . . . . . 4 . . . . . . . . . Robots Built . | . . . . . . . . . . . . . . . . . . . . . . . . . Authchips . | . . . . . . . . . . . . . . . . . . . . . . . . . Time . | . . . . . . . . . . . . . . . . . . . . . . . . . Total Robot Build Rating . | . . . . . . . . . . . . . . . . . . . . . . . . . Part Schematics Acquired 16 | . 1 . 1 . . . . . 4 . . . . . 10 . . . . . . . . . Parts Built . | . . . . . . . . . . . . . . . . . . . . . . . . . Authchips . | . . . . . . . . . . . . . . . . . . . . . . . . . Time . | . . . . . . . . . . . . . . . . . . . . . . . . . Total Part Build Rating . | . . . . . . . . . . . . . . . . . . . . . . . . . Parts Repaired 1 | . . . . . . . . . . . . . . . . . . 1 . . . . . . Time 22 | . . . . . . . . . . . . . . . . . . 22 . . . . . . Parts Recycled . | . . . . . . . . . . . . . . . . . . . . . . . . . Recycled Matter . | . . . . . . . . . . . . . . . . . . . . . . . . . Retrieved Matter . | . . . . . . . . . . . . . . . . . . . . . . . . . Retrieved Components 17 | . . . . . . . . . 12 . . . . . . . . . 3 . . . 2 . Parts Scanalyzed . | . . . . . . . . . . . . . . . . . . . . . . . . . Part Schematics Acquired . | . . . . . . . . . . . . . . . . . . . . . . . . . Parts Damaged . | . . . . . . . . . . . . . . . . . . . . . . . . . Bothacking | -11 -10 -10 -9 -9 -9 -8 -8 -8 -8 -6 -6 -6 -6 -6 -6 -5 -5 -4 -4 -4 -4 -4 -3 -3 ------------ Run | Yrd Mat Min Mat Min Exi Min Mat Sto Rec Fac Was Fac Low Low Dat Pro Fac Fac Ext Cet Arc Hub Res Tes Used RIF Installer . | . . . . . . . . . . . . . . . . . . . . . . . . . Robots Hacked . | . . . . . . . . . . . . . . . . . . . . . . . . . Non-combat . | . . . . . . . . . . . . . . . . . . . . . . . . . Combat . | . . . . . . . . . . . . . . . . . . . . . . . . . Robot Hacks Applied . | . . . . . . . . . . . . . . . . . . . . . . . . . Relay Couplers Released 4 | . . . . . . . . . . . . . . . . . . . . . . 4 . . Machine Destruction 4 | . . . . . . . . . . . . . . . . . . . . . . 4 . . Fabnet Peak Effective % . | . . . . . . . . . . . . . . . . . . . . . . . . . Robots Rewired 2 | . . . . . . . . . . . . . . . . 2 . . . . . . . . Allies Hacked . | . . . . . . . . . . . . . . . . . . . . . . . . . Hacks Repelled . | . . . . . . . . . . . . . . . . . . . . . . . . . Allies | -11 -10 -10 -9 -9 -9 -8 -8 -8 -8 -6 -6 -6 -6 -6 -6 -5 -5 -4 -4 -4 -4 -4 -3 -3 -------- Run | Yrd Mat Min Mat Min Exi Min Mat Sto Rec Fac Was Fac Low Low Dat Pro Fac Fac Ext Cet Arc Hub Res Tes Total Allies 35 | . . 1 . . . . . 1 . . 19 . . . . 2 . . 7 5 . . . . Largest Group 19 | . . 1 . . . . . 1 . . 19 19 13 8 6 7 . . 4 6 6 5 . . Highest-Rated Group 702 | . . 31 . . . . . 100 . . 702 702 525 327 235 249 . . 188 606 606 480 . . Highest-Rated Ally 159 | . . 31 . . . . . 100 . . 50 50 50 46 46 46 . . 159 140 126 96 . . Total Orders 36 | . . . . . . . . . . 1 5 17 . . . . 9 4 . . . . . . STAY 1 | . . . . . . . . . . . . 1 . . . . . . . . . . . . EXPLORE 24 | . . . . . . . . . . 1 2 9 . . . . 8 4 . . . . . . RETURN 11 | . . . . . . . . . . . 3 7 . . . . 1 . . . . . . . Ally Attacks 383 | . . 9 . . . . . 21 . . . 60 46 15 . 87 . . 53 27 20 45 . . Total Damage 11909 | . . 106 . . . . . 846 . . . 2709 1372 448 . 2199 . . 1214 455 812 1748 . . Kills 87 | . . 2 . . . . . 9 . . . 22 9 4 . 14 . . 14 4 3 6 . . Allies Corrupted . | . . . . . . . . . . . . . . . . . . . . . . . . . Allies Melted 2 | . . . . . . . . . . . . 1 . . . 1 . . . . . . . . Intel | -11 -10 -10 -9 -9 -9 -8 -8 -8 -8 -6 -6 -6 -6 -6 -6 -5 -5 -4 -4 -4 -4 -4 -3 -3 ------- Run | Yrd Mat Min Mat Min Exi Min Mat Sto Rec Fac Was Fac Low Low Dat Pro Fac Fac Ext Cet Arc Hub Res Tes Robot Analysis Total 3 | . 1 . . . . . . . 2 . . . . . . . . . . . . . . . Derelict Logs Recovered 9 | . . . . 3 . . . . . . . . 2 1 . 3 . . . . . . . . Drone Launches 33 | . . . . . . . . . . 2 3 10 . . . . 12 6 . . . . . . Drone Recoveries 21 | . . . . . . . . . . . 3 8 . . . . 6 4 . . . . . . Exploration | -11 -10 -10 -9 -9 -9 -8 -8 -8 -8 -6 -6 -6 -6 -6 -6 -5 -5 -4 -4 -4 -4 -4 -3 -3 ------------- Run | Yrd Mat Min Mat Min Exi Min Mat Sto Rec Fac Was Fac Low Low Dat Pro Fac Fac Ext Cet Arc Hub Res Tes Turns Passed 24954 | 72 384 1440 1831 935 854 849 470 988 2854 191 1907 578 1030 1128 102 1530 1580 484 1568 445 1844 765 652 473 Spaces Moved 11437 | 53 120 290 857 565 421 331 169 360 750 123 579 332 972 1128 90 1153 718 394 587 137 528 341 374 65 Core 465 | 10 . . . . . . . . . . . . . . . . . 275 45 . . . 70 65 Treads 2975 | . . 73 122 . . . . . . . 50 . 612 1128 90 453 . . 74 105 225 43 . . Legs 1740 | 43 120 169 . . . . . . 457 . . . . . . 700 189 . . . . 42 20 . Wheels 3978 | . . 48 735 565 421 331 169 360 274 123 98 . . . . . 529 71 254 . . . . . Hover 1090 | . . . . . . . . . 19 . 302 . . . . . . 48 130 32 303 256 . . Flight 1189 | . . . . . . . . . . . 129 332 360 . . . . . 84 . . . 284 . Fastest Speed 40 | 50 120 140 140 155 155 245 161 161 220 140 106 106 84 84 84 84 106 50 40 240 101 101 50 50 Average Speed 163 | 106 288 336 177 155 198 245 178 196 307 140 218 120 96 84 84 97 131 102 216 263 166 137 132 390 Slowest Speed 1800 | 120 400 400 320 155 290 245 185 245 1000 140 298 146 138 84 84 162 400 361 1800 341 240 264 184 900 Overloaded Moves . | . . . . . . . . . . . . . . . . . . . . . . . . . Propulsion Burnouts . | . . . . . . . . . . . . . . . . . . . . . . . . . Robots Hopped 1 | . . . . . . . . . . . . . . . . . . . 1 . . . . . Cave-ins Triggered 7 | . . . . . . . . . . . . . . . . . . . . . . . . 7 Exploration Rate (%) 56 | 4 29 70 79 99 64 79 21 50 99 7 96 24 98 98 71 83 31 16 77 64 88 42 16 3 Regions Visited 24 Branch Regions 15 Pre-discovered Areas 9 | . 1 . . 1 . . . . 5 . . . 1 . 1 . . . . . . . . . Known Exits Taken 15 | . 1 . 1 1 1 1 1 1 . . . 1 1 1 1 1 1 1 . . . . 1 . Unknown Exits Taken 7 | 1 . 1 . . . . . . 1 . . . . . . . . . 1 1 1 1 . . Scrap Searched 15 | . . 1 . 1 . 1 . . . . . . 3 5 . 4 . . . . . . . . Spaces Dug 127 | . . . . 5 . . . . . 1 . . . . . . 19 . . . . 1 8 93 Terrain Destroyed 304 | . . . . 5 . . . 12 8 1 2 . . . . . 128 2 . 7 2 10 34 93 Melee . | . . . . . . . . . . . . . . . . . . . . . . . . . Projectile 109 | . . . . . . . . . 8 1 2 . . . . . 45 2 . 7 2 10 27 5 AOE 195 | . . . . 5 . . . 12 . . . . . . . . 83 . . . . . 7 88 Terrain Rammed . | . . . . . . . . . . . . . . . . . . . . . . . . . Walls Destroyed . | . . . . . . . . . . . . . . . . . . . . . . . . . Machines Disabled . | . . . . . . . . . . . . . . . . . . . . . . . . . Actions | -11 -10 -10 -9 -9 -9 -8 -8 -8 -8 -6 -6 -6 -6 -6 -6 -5 -5 -4 -4 -4 -4 -4 -3 -3 --------- Run | Yrd Mat Min Mat Min Exi Min Mat Sto Rec Fac Was Fac Low Low Dat Pro Fac Fac Ext Cet Arc Hub Res Tes Total 16652 | 65 143 652 1092 599 443 352 279 537 1254 143 1178 505 1054 1302 115 1497 1139 476 869 190 1441 582 482 263 Wait 3436 | . 9 263 78 15 . 6 44 48 386 1 473 139 53 147 25 242 140 37 156 16 774 153 48 183 Move 11405 | 52 119 289 856 564 420 330 168 359 749 123 578 331 971 1127 89 1152 717 393 584 136 527 340 373 58 Hop 1 | . . . . . . . . . . . . . . . . . . . 1 . . . . . Pick Up 337 | 6 2 25 31 . 12 2 10 29 26 8 21 10 9 5 . 10 34 5 35 9 31 4 13 . Fast Attach 67 | 6 1 . 3 . . . 1 8 1 . 4 . 1 3 . . 8 7 9 1 5 5 . 4 Attach 141 | . . 5 5 1 3 . 8 17 1 4 13 4 1 . . . 43 3 18 . 6 4 4 1 Detach 37 | . . 1 1 . 1 . 3 1 3 . 7 . . . . . 10 . 4 2 1 1 1 1 Swap 150 | 1 . 6 23 4 1 1 4 17 . 2 5 3 4 3 1 20 34 2 4 1 1 8 5 . Drop 298 | . 1 3 34 . 6 2 7 25 34 4 24 10 7 8 . 11 35 22 17 4 30 5 9 . Fire 655 | . 11 58 57 15 . 11 34 31 54 1 53 8 8 7 . 53 114 1 8 13 66 20 28 4 Melee 3 | . . . . . . . . . . . . . . . . . . . 3 . . . . . Ram 6 | . . . 4 . . . . 1 . . . . . . . . . 1 . . . . . . Kick 6 | . . . . . . . . . . . . . . . . . 3 . . . . 3 . . Crush 8 | . . 2 . . . . . 1 . . . . . . . . . 5 . . . . . . Escape Stasis 75 | . . . . . . . . . . . . . . . . . . . 30 . . 39 . 6 Rewire 13 | . . . . . . . . . . . . . . 2 . 9 1 . . . . . 1 . Trap . | . . . . . . . . . . . . . . . . . . . . . . . . . Miscellaneous 14 | . . . . . . . . . . . . . . . . . . . . 8 . . . 6 Route ------- -11/Scrapyard -10/Materials (discovered 2 exits: *Min x2) -10/Mines (discovered 2 exits: *Mat / [*Sub]) -9/Materials (discovered 4 exits: *Mat x3 / *Min) -9/Mines (discovered 3 exits: *Mat x2 / *Exi) -9/Exiles (discovered 2 exits: *Min x2) -8/Mines -8/Materials -8/Storage -8/Recycling -6/Factory -6/Waste -6/Factory (discovered 5 exits: Fac x4 / *Low) -6/Lower Caves -6/Lower Caves (discovered 2 exits: *Fac / *Dat) -6/Data Miner -5/Proximity Caves -5/Factory (discovered 4 exits: *Fac x2 / Upp x2) -4/Factory (discovered 4 exits: Upp x2 / *Ext x2) -4/Extension (discovered 2 exits: *Res / *Cet) -4/Cetus -4/Archives (discovered 3 exits: *Res / *Hub x2) -4/Hub_04(d) -3/Research (discovered 3 exits: Arm / *Tes x2) -3/Testing History --------- Turn | Location | Event 7 | -11/Scrapyard | Discovered new exit (range 15) 73 | -11/Scrapyard | Entered Materials 277 | -10/Materials | Central database locked down 307 | -10/Materials | Build established: Mutant 325 | -10/Materials | Identified exit to Mines 457 | -10/Materials | Entered Mines 460 | -10/Mines | Received a Mining Laser from a helpful Derelict 969 | -10/Mines | Found a damaged Exp. Sensor Array with a note attached 977 | -10/Mines | Found Prototype Device 978 | -10/Mines | Identified Exp. Sensor Array 1174 | -10/Mines | Excavation squad dispatched 1174 | -10/Mines | A large section of the Mines collapsed 1424 | -10/Mines | Excavation squad dispatched 1513 | -10/Mines | Core integrity fell below 50% 1674 | -10/Mines | Excavation squad dispatched 1876 | -10/Mines | Discovered new exit (range 16) 1880 | -10/Mines | Discovered new exit (range 15) 1897 | -10/Mines | Entered Materials 1897 | -9/Materials | Evolved 2 slots: Utility x2 2129 | -9/Materials | Discovered new exit (range 6) 2373 | -9/Materials | Discovered new exit (range 3) 2609 | -9/Materials | Discovered new exit (range 5) 3124 | -9/Materials | Discovered new exit (range 4) 3135 | -9/Materials | Identified exit to Materials 3427 | -9/Materials | Identified exit to Mines 3728 | -9/Materials | Entered Mines 3729 | -9/Mines | Met a Derelict bent on vengeance 3771 | -9/Mines | Found a hidden stash of uninstalled traps 4184 | -9/Mines | Discovered exit to Materials (range 8) 4341 | -9/Mines | Learned Materials trap positions 4386 | -9/Mines | Deemed a non-threat by the Exiles lab entrance 4386 | -9/Mines | Discovered new exit (range 5) 4446 | -9/Mines | Discovered exit to Materials (range 8) 4460 | -9/Mines | Learned Materials machine intel 4482 | -9/Mines | Learned location of Zion (-7) 4660 | -9/Mines | Identified exit to Exiles 4663 | -9/Mines | Entered Exiles 4707 | -9/Exiles | Met 8R-AWN 4732 | -9/Exiles | Met EX-HEX 4840 | -9/Exiles | Visited The Gauntlet 4878 | -9/Exiles | Met EX-DEC 4986 | -9/Exiles | Discovered new exit (range 14) 5317 | -9/Exiles | Build established: Hauler-Mutant 5429 | -9/Exiles | Discovered new exit (range 15) 5514 | -9/Exiles | Identified exit to Mines 5517 | -9/Exiles | Entered Mines 6094 | -8/Mines | Discovered exit to Materials (range 13) 6366 | -8/Mines | Entered Materials 6366 | -8/Materials | Evolved 2 slots: Propulsion x1, Utility x1 6367 | -8/Materials | Loaded intel: 15 trap records 6368 | -8/Materials | Loaded intel: 62 machine locations 6609 | -8/Materials | Identified exit to Storage 6836 | -8/Materials | Entered Storage 6850 | -8/Storage | Met 01-MTF 6980 | -8/Storage | Identified exit to Recycling 7568 | -8/Storage | Lost 6 parts (1p2n2u1w) 7814 | -8/Storage | Used back door to open Recycling access 7824 | -8/Storage | Entered Recycling 7825 | -8/Recycling | Found Scrap Engine 8824 | -8/Recycling | Build established: Hauler-Construct 10195 | -8/Recycling | Discovered new exit (range 5) 10678 | -8/Recycling | Entered Factory 10678 | -6/Factory | Evolved 4 slots: Propulsion x3, Utility x1 10869 | -6/Factory | Sucked down chute 10869 | -6/Factory | Entered Waste 10869 | -6/Waste | Met up with 1 ally sucked down the chute earlier 10901 | -6/Waste | Spotted C-40 Crusher 10934 | -6/Waste | Destroyed C-40 Crusher 10994 | -6/Waste | Spotted C-40 Crusher 11042 | -6/Waste | Destroyed C-40 Crusher 11079 | -6/Waste | Spotted C-40 Crusher 11112 | -6/Waste | Crushed by Compactor (1 part destroyed, 1 dropped) 11118 | -6/Waste | Crushed by Compactor (1 part destroyed, 1 dropped) 11131 | -6/Waste | Destroyed C-40 Crusher 11155 | -6/Waste | Lost 5 parts (3n2u) 11312 | -6/Waste | Spotted C-40 Crusher 11325 | -6/Waste | Destroyed C-40 Crusher 11337 | -6/Waste | Spotted C-40 Crusher 11347 | -6/Waste | Destroyed C-40 Crusher 11410 | -6/Waste | Spotted C-40 Crusher 11423 | -6/Waste | Destroyed C-40 Crusher 11786 | -6/Waste | Warlord forces began an assault 11936 | -6/Waste | Discovered new exit (range 12) 12776 | -6/Waste | Entered Factory 12776 | -6/Factory | Accompanied by 19 allies 12991 | -6/Factory | Lost 4 allies 13006 | -6/Factory | Identified exit to Factory 13056 | -6/Factory | Hacking Suite fried by hacking feedback 13190 | -6/Factory | Discovered new exit (range 16) 13229 | -6/Factory | Identified exit to Lower Caves 13354 | -6/Factory | Entered Lower Caves 13354 | -6/Lower Caves | Accompanied by 13 allies 13669 | -6/Lower Caves | Encountered a Warlord checkpoint 13865 | -6/Lower Caves | Lost 3 allies 14090 | -6/Lower Caves | Learned Factory emergency access door positions 14311 | -6/Lower Caves | Discovered new exit (range 9) 14322 | -6/Lower Caves | Identified exit to Lower Caves 14384 | -6/Lower Caves | Entered another Lower Caves area 14384 | -6/Lower Caves | Accompanied by 8 allies 14403 | -6/Lower Caves | Discovered exit to Factory (range 3) 14643 | -6/Lower Caves | Learned 8 Factory zone layouts 15020 | -6/Lower Caves | Attracted the attention of an 0b10 checkpoint 15262 | -6/Lower Caves | Discovered new exit (range 6) 15266 | -6/Lower Caves | Identified exit to Data Miner 15512 | -6/Lower Caves | Entered Data Miner 15512 | -6/Data Miner | Accompanied by 6 allies 15512 | -6/Data Miner | Discovered new exit (range 7) 15528 | -6/Data Miner | Met Data Miner 15549 | -6/Data Miner | Learned location of Section 7 (-2) 15549 | -6/Data Miner | Acquired the access code to Warlord's prototype stash 15562 | -6/Data Miner | Received God Mode back door access code from Data Miner 15582 | -6/Data Miner | Identified exit to Proximity Caves 15614 | -6/Data Miner | Entered Proximity Caves 15614 | -5/Proximity Caves | Accompanied by 6 allies 15683 | -5/Proximity Caves | Attracted the attention of an 0b10 outpost 15735 | -5/Proximity Caves | Learned location of 1 exit from Factory 16037 | -5/Proximity Caves | Spotted B-75 Beast 16058 | -5/Proximity Caves | Destroyed B-75 Beast 16532 | -5/Proximity Caves | Learned Factory interactive machine intel 16684 | -5/Proximity Caves | Found Imp. Powered Armor 16999 | -5/Proximity Caves | Learned Factory emergency access door positions 17142 | -5/Proximity Caves | Discovered exit to Factory (range 3) 17144 | -5/Proximity Caves | Entered Factory 17144 | -5/Factory | Evolved 2 slots: Weapon x2 17145 | -5/Factory | Identified exit to Factory 17148 | -5/Factory | Loaded intel: 52 interactive machine locations 17165 | -5/Factory | Lost 3 allies 17326 | -5/Factory | Garrison activated, responded to threat 17444 | -5/Factory | First assault squad dispatched 17664 | -5/Factory | Lost 5 parts (2n2u1w) 17717 | -5/Factory | Garrison activated, responded to threat 17822 | -5/Factory | Build established: Scavenger-Tank 17837 | -5/Factory | Spotted B-75 Beast 17881 | -5/Factory | Found Hvy. Insulated Plating 17884 | -5/Factory | Found Hvy. Insulated Plating 17890 | -5/Factory | Discovered exit to Factory (range 31) 17973 | -5/Factory | Lost 4 parts (1u3w) 18045 | -5/Factory | Found Hvy. Insulated Plating 18048 | -5/Factory | Found Hvy. Insulated Plating 18151 | -5/Factory | Destroyed B-75 Beast 18237 | -5/Factory | Build established: Scavenger-Gunner 18591 | -5/Factory | Garrison activated, responded to threat 18648 | -5/Factory | Core integrity fell below 50% 18676 | -5/Factory | Identified exit to Upper Caves 18700 | -5/Factory | System corruption reached 10% 18724 | -5/Factory | Entered another Factory area 18724 | -4/Factory | Evolved 2 slots: Propulsion x2 18743 | -4/Factory | Lost 10 parts (1p4n1u4w) 18855 | -4/Factory | Repaired Arm. Huge Wheel 18993 | -4/Factory | Spotted B-86 Titan 19106 | -4/Factory | Identified exit to Upper Caves 19106 | -4/Factory | Identified exit to Extension 19208 | -4/Factory | Entered Extension 19353 | -4/Extension | Rescued a captive Derelict 19444 | -4/Extension | Rescued a captive Derelict 19444 | -4/Extension | Rescued a captive Derelict 19517 | -4/Extension | Build established: Mutant 19674 | -4/Extension | Rescued a captive Derelict 19675 | -4/Extension | Rescued a captive Derelict 19781 | -4/Extension | Spotted B-86 Titan 19789 | -4/Extension | Spotted B-86 Titan 19833 | -4/Extension | Destroyed B-86 Titan 19841 | -4/Extension | Core integrity fell below 50% 19842 | -4/Extension | Lost 3 allies 19881 | -4/Extension | Lost 11 parts (1p5n4u1w) 19900 | -4/Extension | Rescued a captive Derelict 19909 | -4/Extension | Rescued A7 20481 | -4/Extension | Discovered new exit (range 10) 20485 | -4/Extension | Discovered new exit (range 6) 20776 | -4/Extension | Entered Cetus 20776 | -4/Cetus | Accompanied by 1 ally (A7) 20781 | -4/Cetus | Acquired a Cetus Manufacturing Module code from A7 20816 | -4/Cetus | Spotted Cetus Guard 20827 | -4/Cetus | Destroyed Cetus Guard 20829 | -4/Cetus | Spotted Cetus Guard 20835 | -4/Cetus | Allies destroyed Cetus Guard 20836 | -4/Cetus | Spotted Cetus Guard 20837 | -4/Cetus | Core integrity fell below 20% 20846 | -4/Cetus | Allies destroyed Cetus Guard 20846 | -4/Cetus | Spotted Cetus Guard 20856 | -4/Cetus | Allies destroyed Cetus Guard 20930 | -4/Cetus | System corruption reached 10% 21022 | -4/Cetus | Started Cetus Manufacturing Module 21047 | -4/Cetus | Manufactured an Enhanced Grunt 21055 | -4/Cetus | Escorted A7 to Cetus Mainframe 21072 | -4/Cetus | Manufactured an Enhanced Grunt 21097 | -4/Cetus | Manufactured an Enhanced Grunt 21122 | -4/Cetus | Manufactured an Enhanced Grunt 21147 | -4/Cetus | Manufactured an Enhanced Grunt 21183 | -4/Cetus | Discovered new exit (range 16) 21221 | -4/Cetus | Entered Archives 21221 | -4/Archives | Accompanied by 6 allies (A7) 21226 | -4/Archives | Received a hacking code to weaken MAIN.C 21313 | -4/Archives | Discovered new exit (range 16) 21344 | -4/Archives | Discovered new exit (range 16) 21407 | -4/Archives | Build established: Commander-Gunner 21610 | -4/Archives | Discovered new exit (range 16) 22452 | -4/Archives | Build established: Scavenger-Gunner 23065 | -4/Archives | Entered Hub_04(d) 23065 | -4/Hub_04(d) | Accompanied by 5 allies 23255 | -4/Hub_04(d) | Discovered new exit (range 10) 23315 | -4/Hub_04(d) | First assault squad dispatched 23343 | -4/Hub_04(d) | Incoming assault squad redirected 23403 | -4/Hub_04(d) | Lost 4 allies 23449 | -4/Hub_04(d) | Lost 6 parts (1p5n) 23463 | -4/Hub_04(d) | Network Hub disabled 23470 | -4/Hub_04(d) | Spotted Lightning 23483 | -4/Hub_04(d) | Incoming assault squad redirected 23495 | -4/Hub_04(d) | Found Prototype Device 23712 | -4/Hub_04(d) | Build established: Scavenger-Tank 23808 | -4/Hub_04(d) | Incoming investigation squad redirected 23830 | -4/Hub_04(d) | Entered Research 23830 | -3/Research | Evolved 2 slots: Utility x2 24239 | -3/Research | Identified exit to Armory 24239 | -3/Research | Identified exit to Testing 24412 | -3/Research | Build established: Wizard-Gunner 24438 | -3/Research | Cargo convoy interrupted 24438 | -3/Research | Spotted Executioner 24438 | -3/Research | Spotted Executioner 24438 | -3/Research | Spotted Executioner 24448 | -3/Research | System corruption reached 10% 24452 | -3/Research | Core integrity fell below 50% 24461 | -3/Research | Incoming assault squad redirected 24482 | -3/Research | Entered Testing 24490 | -3/Testing | Lost 6 parts (3n3u) 24509 | -3/Testing | Found Prototype Energy Cannon 24509 | -3/Testing | Identified Imp. Potential Cannon 24516 | -3/Testing | Found Prototype Energy Cannon 24516 | -3/Testing | Identified Potential Cannon 24629 | -3/Testing | Crushed by falling debris 24803 | -3/Testing | Build established: Pyromaniac-Gunner 24929 | -3/Testing | Crushed by falling debris 24930 | -3/Testing | Core integrity fell below 20% 24946 | -3/Testing | Crushed by falling debris 24948 | -3/Testing | Crushed by falling debris 24950 | -3/Testing | Crushed by falling debris 24953 | -3/Testing | Crushed by falling debris 24955 | -3/Testing | Crushed by falling debris 24955 | -3/Testing | Smashed by cave-in Last Messages --------------- (-200). 24929_ The unstable cave ceiling collapses. 24929_ Crushed by falling debris. 24929_ Imp. Energy Well destroyed. 24929_ System corrupted by crushing effect (+3). 24929_ Imp. Potential Cannon destroyed. 24929_ System corrupted by crushing effect (+3). 24935_ System corrupted: Heat flow error (+190). 24938_ Potential Cannon destroyed. 24938_ Destroyed Potential Cannon. 24946_ The unstable cave ceiling collapses. 24946_ Crushed by falling debris. 24948_ The unstable cave ceiling collapses. 24948_ Crushed by falling debris. 24950_ The unstable cave ceiling collapses. 24950_ Crushed by falling debris. 24953_ The unstable cave ceiling collapses. 24953_ Crushed by falling debris. 24955_ The unstable cave ceiling collapses. 24955_ Crushed by falling debris. Map ----- +----------------------------------------------------+ | | | | | | | | | | | | | | | | | | | | | | | | | | | | | | | | | | | | | | | ????????????????????## #??????????????????? | | ????????????????????# # ##??????????????????? | | ????????????????????# # ##?????????????????? | | ????????????????????# # #?????????????????? | | ???????????????????## # ##?????????????????? | | ???????????????????# # #??????????????????? | | ???????????????????## @ #??????????????????? | | ???????????????????# #??????????????????? | | ??????????????????####### # ##??????????????????? | | ??????????????????#" # # ###???????????????????? | | ??????????????????# ## #?????????????????????? | | ??????????????????#" ###?????????????????????? | | ??????????????????#"" "#??????????????????????? | | ??????????????????#" "##??????????????????????? | | ??????????????????# #???????????????????????? | | ?????????????????####+####???????????????????????? | | ?????????????????# #???????????????????????? | | ?????????????????# #???????????????????????? | | ?????????????????# #???????????????????????? | | ?????????????????# #???????????????????????? | | ?????????????????#### #???????????????????????? | | ????????????????????# #???????????????????????? | | ????????????????????# #???????????????????????? | | ????????????????????# ??????????????????????? | | ????????????????????+ ?????????????????????? | | ????????????????????# ????????????????????? | | ????????????????????? ???????????????????? | | ????????????????????? ####+#??????????????????? | | ????????????????????? #???????????????????????? | | ????????????????????? #???????????????????????? | | ????????????????????? #???????????????????????? | +----------------------------------------------------+ Best States ------------- Heat Dissipation 84 Energy Generation 23 Energy Capacity 1000 Matter Stores 300 Matter Capacity 300 Sight Range 16 Robot Scan Range 20 Terrain Scan Range 20 Terrain Scan Density 210 Jamming Range 14 EM Shielding 2 Corruption Containment 8 Armor Coverage 825 Resistance: EM 30 Phase Shifting 10 Evasion (%) 62 Targeting Accuracy 8 Melee Accuracy 12 Target Analysis 8 Recoil Reduction 6 Particle Charging 20 Offensive Hacking 36 Defensive Hacking 36 Item Schematics ----------------- Cargo Storage Unit | -10/Materials | Hacked Hpw. Tractor Beam | -9/Materials | Hacked Adv. Terrain Scan Processor | -8/Recycling | Hacked Lrn. Tractor Beam | -8/Recycling | Hacked Arm. Treads | -8/Recycling | Hacked Lyr. Medium Armor Plating | -8/Recycling | Hacked Combat Drone Bay | -6/Data Miner | Free Lgt. Regenerative Plating | -6/Data Miner | Free Cld. Gravmag System | -6/Data Miner | Free Prc. Energy Filter | -6/Data Miner | Free Thunder Hammer | -6/Data Miner | Free Myomer Leg | -6/Data Miner | Free Graphene Brace | -6/Data Miner | Free Matter Neutralizer | -6/Data Miner | Free Nuclear Pulse Array | -6/Data Miner | Free Impulse Thruster Array | -6/Data Miner | Free Robot Schematics ------------------ B-60 Warrior | -6/Data Miner | Free Y-54 Guardian | -6/Data Miner | Free Y-64 Sentinel | -6/Data Miner | Free A-15 Conveyor | -6/Data Miner | Free Fabricated ------------ Nothing Alien Tech Used ----------------- None Achievements -------------- None Challenges ------------ None Game ------ Seed FocalBiomechanicalPlating Manual? 0 Play Time 03:41:32 Cumulative 324.7 hours Start 2024.05.07 @ 10:30:38 End 2024.05.07 @ 14:11:11 Sessions 1 Manual Loads 0 Difficulty Rogue Special Mode None Game No. 86 Rogue 86 Adventurer 0 Explorer 0 Win Type - Total 17 Types 8/3/3/1/1/0/1/0/0 Lore% 58 Gallery% 80 Achievement% 71 Wizard Run 0 Options --------- Layout 1 ASCII 0 Keyboard 0 Movement Numpad Keybinds 0 Fullscreen 1 Font 24/Smallcaps Map View 50x35 Zoom Use 5% Tactical HUD 1 Map Filters NONE Filters NONE Steam 1 RUN: d34d4dd0-3194-4435-81ca-3cd32a93f775